bitfinex/quotes_BTCUSD_20241111
["timestamp","ask_amount","ask_price","bid_price","bid_amount"]
[1731342418849,0.01773144,84226.0,84214.0,0.023]
[1731342419058,0.01773144,84226.0,84209.0,0.000853]
[1731342419276,0.1773144,84227.0,84209.0,0.000853]
[1731342419277,0.1773144,84218.0,84209.0,0.000853]
[1731342419534,0.1773144,84227.0,84209.0,0.000853]
[1731342419535,0.1773144,84216.0,84209.0,0.000853]
[1731342419738,0.1773144,84227.0,84209.0,0.000853]
[1731342419739,0.29725515,84215.0,84209.0,0.000853]
[1731342420027,0.11994075,84215.0,84209.0,0.000853]
[1731342420237,0.1773144,84227.0,84209.0,0.000853]
[1731342420455,0.11994075,84214.0,84209.0,0.000853]
[1731342420667,0.1773144,84227.0,84209.0,0.000853]
[1731342420885,0.11994075,84214.0,84209.0,0.000853]
[1731342421107,0.11994075,84226.0,84209.0,0.000853]
[1731342421331,0.0479,84245.0,84209.0,0.000853]
[1731342421548,0.1773144,84228.0,84211.0,0.0593407]
[1731342421763,0.001706,84265.0,84218.0,0.005]
[1731342421973,0.001706,84265.0,84213.0,0.15908159]
[1731342421974,0.1773144,84232.0,84226.0,0.0820831]
[1731342422195,0.001706,84265.0,84235.0,0.05941339]
[1731342422196,0.1773144,84237.0,84235.0,0.05941339]
[1731342422413,0.1773144,84237.0,84234.0,0.023]
[1731342422414,0.1773144,84237.0,84234.0,0.05982312]
[1731342422679,0.001706,84265.0,84236.0,0.05946934]
[1731342422901,0.001706,84265.0,84233.0,0.1]
[1731342423118,0.001706,84265.0,84234.0,0.023]
[1731342423336,0.1773144,84247.0,84226.0,0.023]
[1731342423551,0.1773144,84247.0,84219.0,0.05940564]
[1731342423792,0.1773144,84247.0,84216.0,0.0772]
[1731342423793,0.1773144,84238.0,84216.0,0.0772]
[1731342424003,0.001706,84265.0,84216.0,0.0772]
[1731342424004,0.1773144,84245.0,84219.0,0.11994075]
[1731342424242,0.1773144,84245.0,84216.0,0.0772]
[1731342424243,0.1773144,84236.0,84216.0,0.0772]
[1731342424457,0.1723144,84244.0,84216.0,0.13644094]
[1731342424678,0.1773144,84253.0,84224.0,0.005]
[1731342424891,0.1773144,84243.0,84225.0,0.05924198]
[1731342425111,0.1773144,84253.0,84225.0,0.05924198]
[1731342425112,0.1773144,84253.0,84231.0,0.023]
[1731342425317,0.1773144,84244.0,84236.0,0.028]
[1731342425520,0.1773144,84244.0,84237.0,0.1223147]
[1731342425667,0.1773144,84244.0,84240.0,0.023]
[1731342425879,0.16285773,84244.0,84243.0,0.023]
[1731342426127,0.1773144,84253.0,84244.0,0.0593033]
[1731342426406,0.005,84280.0,84210.0,0.3005]
[1731342426407,0.005,84280.0,84248.0,0.05949804]
[1731342426605,0.005,84280.0,84247.0,0.023]
[1731342426606,0.1773144,84262.0,84253.0,0.028]
[1731342426807,0.005,84280.0,84255.0,0.059544]
[1731342427022,0.1773144,84270.0,84259.0,0.05940025]
[1731342427233,0.1773144,84261.0,84258.0,0.023]
[1731342427429,0.1773144,84261.0,84233.0,0.0509]
[1731342427430,0.005,84280.0,84248.0,0.1]
[1731342427683,0.005,84280.0,84247.0,0.0794]
[1731342427684,0.1773144,84264.0,84247.0,0.0794]
[1731342427936,0.1773144,84254.0,84238.0,0.1]
[1731342428138,0.1773144,84263.0,84242.0,0.1]
[1731342429248,0.1773144,84263.0,84235.0,0.0794]
[1731342429474,0.1773144,84253.0,84224.0,0.10022894]
[1731342429693,0.11994075,84262.0,84227.0,0.05982472]
[1731342429897,0.1773144,84263.0,84226.0,0.1]
[1731342429898,0.1773144,84251.0,84230.0,0.05948079]
[1731342430102,0.1773144,84263.0,84224.0,0.00022894]
[1731342430103,0.1773144,84250.0,84233.0,0.05922352]
[1731342430652,0.1773144,84250.0,84229.0,0.05972595]
[1731342430653,0.1773144,84241.0,84229.0,0.05972595]
[1731342430858,0.1773144,84250.0,84217.0,0.0778]
[1731342430859,0.1773144,84250.0,84231.0,0.1]
[1731342431075,0.1773144,84240.0,84212.0,0.00022894]
[1731342431277,0.11994075,84239.0,84213.0,0.1773144]
[1731342431514,0.11994075,84239.0,84214.0,0.1773144]
[1731342431725,0.1773144,84238.0,84215.0,0.11994075]
[1731342431939,0.0466,84249.0,84215.0,0.11994075]
[1731342431940,0.1773144,84237.0,84215.0,0.11994075]
[1731342432091,0.1773144,84248.0,84217.0,0.05966265]
[1731342432296,0.1773144,84239.0,84218.0,0.0023745]
[1731342432496,0.1773144,84238.0,84219.0,0.05940564]
[1731342432729,0.1773144,84238.0,84215.0,0.12494075]
[1731342432730,0.1773144,84238.0,84221.0,0.05987656]
[1731342432908,0.1773144,84238.0,84223.0,0.05926348]
[1731342433215,0.1773144,84238.0,84226.0,0.0590831]
[1731342433389,0.1773144,84238.0,84215.0,0.005]
[1731342433390,0.1773144,84238.0,84229.0,0.023]
[1731342433592,0.1773144,84238.0,84231.0,0.123]
[1731342433780,0.1773144,84248.0,84233.0,0.123]
[1731342433984,0.1773144,84247.0,84235.0,0.123]
[1731342434436,0.1773144,84247.0,84215.0,0.05992787]
[1731342434649,0.1773144,84246.0,84215.0,0.05992787]
[1731342435066,0.1773144,84231.0,84215.0,0.05992787]
[1731342435311,0.1773144,84236.0,84217.0,0.05966265]
[1731342435534,0.1773144,84236.0,84218.0,0.11994075]
[1731342435713,0.1773144,84235.0,84219.0,0.05940564]
[1731342435927,0.1773144,84235.0,84207.0,0.0179318]
[1731342436183,0.1773144,84226.0,84209.0,0.12079375]
[1731342436388,0.11994075,84225.0,84209.0,0.000853]
[1731342436607,0.11994075,84225.0,84202.0,0.001344]
[1731342436608,0.1773144,84217.0,84202.0,0.001344]
[1731342436819,0.2243144,84216.0,84202.0,0.001344]
[1731342437028,0.047,84216.0,84203.0,0.1773144]
[1731342437168,0.047,84216.0,84202.0,0.001344]
[1731342437368,0.1823144,84223.0,84202.0,0.001344]
[1731342437744,0.11994075,84222.0,84202.0,0.001344]
[1731342437958,0.29725515,84222.0,84202.0,0.001344]
[1731342438160,0.1773144,84222.0,84202.0,0.001344]
[1731342438817,0.047,84232.0,84204.0,0.1773144]
[1731342439031,0.1773144,84226.0,84207.0,0.023]
[1731342439267,0.1773144,84225.0,84215.0,0.023]
[1731342439440,0.1773144,84225.0,84217.0,0.023]
[1731342439644,0.0483,84249.0,84218.0,0.11994075]
[1731342439840,0.0483,84249.0,84219.0,0.023]
[1731342440135,0.1773144,84233.0,84223.0,0.023]
[1731342440336,0.1773144,84233.0,84225.0,0.023]
[1731342440460,0.1773144,84233.0,84227.0,0.023]
[1731342440673,0.1773144,84233.0,84214.0,0.1]
[1731342440893,0.005,84257.0,84214.0,0.1]
[1731342440894,0.005,84257.0,84216.0,0.2003144]
[1731342441104,0.1773144,84237.0,84218.0,0.023]
[1731342441470,0.050006,84265.0,84220.0,0.1]
[1731342441471,0.1773144,84236.0,84220.0,0.1]
[1731342441932,0.11994075,84235.0,84205.0,0.1]
[1731342442155,0.13767219,84235.0,84213.0,0.1773144]
[1731342442372,0.13767219,84235.0,84202.0,0.001344]
[1731342442373,0.1773144,84226.0,84202.0,0.001344]
[1731342442601,0.11994075,84225.0,84207.0,0.1773144]
[1731342442806,0.1773144,84223.0,84202.0,0.001344]
[1731342443117,0.005,84219.0,84202.0,0.001344]
[1731342443317,0.1,84221.0,84202.0,0.001344]
[1731342443318,0.005,84212.0,84202.0,0.001344]
[1731342443520,0.11994075,84211.0,84202.0,0.001344]
[1731342444153,0.1773144,84208.0,84202.0,0.001344]
[1731342444338,0.11994075,84207.0,84202.0,0.001344]
[1731342444547,0.11994075,84207.0,84185.0,0.1525728]
[1731342444756,0.1773144,84205.0,84178.0,0.00022894]
[1731342444967,0.1,84217.0,84187.0,0.1773144]
[1731342445173,0.1,84217.0,84179.0,0.11994075]
[1731342445174,0.1773144,84209.0,84180.0,0.1]
[1731342445386,0.1773144,84209.0,84174.0,0.05989345]
[1731342445387,0.29725515,84209.0,84185.0,0.1773144]
[1731342445587,0.29725515,84209.0,84202.0,0.000853]
[1731342445997,0.1773144,84208.0,84202.0,0.000853]
[1731342446198,0.1773144,84218.0,84202.0,0.000853]
[1731342446829,0.11994075,84217.0,84202.0,0.000853]
[1731342447263,0.005,84215.0,84202.0,0.000853]
[1731342447479,0.11994075,84214.0,84202.0,0.000853]
[1731342447691,0.11994075,84214.0,84185.0,0.1773144]
[1731342447692,0.11994075,84214.0,84185.0,0.1281674]
[1731342448137,0.11994075,84214.0,84185.0,0.0781674]
[1731342448358,0.11994075,84214.0,84186.0,0.023]
[1731342448570,0.1773144,84209.0,84186.0,0.023]
[1731342448772,0.1773144,84209.0,84185.0,0.0781674]
[1731342448773,0.1773144,84218.0,84195.0,0.1773144]
[1731342448995,0.1773144,84215.0,84198.0,0.023]
[1731342449234,0.1773144,84236.0,84203.0,0.05974578]
[1731342449472,0.1773144,84236.0,84206.0,0.05977474]
[1731342449693,0.1773144,84226.0,84211.0,0.023]
[1731342449898,0.1773144,84225.0,84217.0,0.08266265]
[1731342450098,0.1773144,84224.0,84217.0,0.08266265]
[1731342450276,0.1773144,84224.0,84217.0,0.023]
[1731342450794,0.1773144,84236.0,84214.0,0.05959289]
[1731342451009,0.1773144,84227.0,84219.0,0.023]
[1731342451411,0.1773144,84236.0,84219.0,0.023]
[1731342451603,0.1773144,84236.0,84217.0,0.023]
[1731342451876,0.1773144,84235.0,84221.0,0.023]
[1731342452084,0.1773144,84235.0,84222.0,0.11994075]
[1731342452297,0.1773144,84235.0,84223.0,0.023]
[1731342452519,0.1773144,84235.0,84223.0,0.14294075]
[1731342452733,0.1773144,84235.0,84225.0,0.023]
[1731342453156,0.001706,84252.0,84229.0,0.023]
[1731342453320,0.001706,84252.0,84232.0,0.05987148]
[1731342453671,0.001706,84252.0,84228.0,0.0828]
[1731342453672,0.1773144,84244.0,84235.0,0.05941339]
[1731342453803,0.1773144,84244.0,84234.0,0.123]
[1731342454007,0.001706,84252.0,84237.0,0.023]
[1731342454234,0.1773144,84244.0,84237.0,0.023]
[1731342454446,0.001706,84252.0,84237.0,0.023]
[1731342454645,0.001706,84252.0,84234.0,0.1]
[1731342454646,0.001706,84252.0,84236.0,0.05946934]
[1731342454845,0.1773144,84251.0,84242.0,0.023]
[1731342455071,0.1773144,84251.0,84217.0,0.05966265]
[1731342455411,0.11994075,84250.0,84234.0,0.1773144]
[1731342455619,0.11994075,84250.0,84218.0,0.00022894]
[1731342455818,0.11994075,84250.0,84227.0,0.1]
[1731342456044,0.1773144,84242.0,84218.0,0.00022894]
[1731342456201,0.1773144,84251.0,84216.0,0.1773144]
[1731342456202,0.11994075,84240.0,84216.0,0.1773144]
[1731342456368,0.11994075,84240.0,84210.0,0.00022894]
[1731342456369,0.005,84232.0,84217.0,0.1773144]
[1731342456782,0.11994075,84231.0,84217.0,0.1773144]
[1731342457219,0.1773144,84230.0,84207.0,0.23674648]
[1731342457444,0.1773144,84230.0,84208.0,0.1773144]
[1731342457445,0.11994075,84229.0,84208.0,0.1773144]
[1731342457880,0.11994075,84229.0,84206.0,0.000848]
[1731342457881,0.1773144,84219.0,84206.0,0.000848]
[1731342458083,0.11994075,84218.0,84206.0,0.000848]
[1731342458464,0.11994075,84218.0,84207.0,0.1773144]
[1731342458681,0.1773144,84228.0,84206.0,0.000848]
[1731342458882,0.11994075,84217.0,84206.0,0.000848]
[1731342459346,0.11994075,84217.0,84181.0,0.082]
[1731342459347,0.1773144,84208.0,84183.0,0.00022897]
[1731342459559,0.11994075,84207.0,84198.0,0.1773144]
[1731342459779,0.11994075,84207.0,84189.0,0.1773144]
[1731342459986,0.1269,84216.0,84189.0,0.1773144]
[1731342460182,0.1269,84216.0,84183.0,0.00022897]
[1731342460183,0.1773144,84210.0,84183.0,0.00022897]
[1731342460384,0.11994075,84209.0,84186.0,0.1773144]
[1731342460691,0.11994075,84209.0,84174.0,0.1773144]
[1731342460911,0.1773144,84201.0,84176.0,0.023]
[1731342461153,0.1773144,84201.0,84178.0,0.1]
[1731342461154,0.11994075,84200.0,84178.0,0.1]
[1731342461355,0.1773144,84199.0,84179.0,0.05911601]
[1731342461569,0.1773144,84210.0,84181.0,0.15970782]
[1731342461774,0.1773144,84198.0,84181.0,0.27964857]
[1731342462978,0.1773144,84198.0,84184.0,0.023]
[1731342463188,0.1773144,84188.0,84181.0,0.1]
[1731342463385,0.11994075,84197.0,84181.0,0.1]
[1731342463585,0.1773144,84196.0,84181.0,0.1]
[1731342463818,0.11994075,84195.0,84168.0,0.05907622]
[1731342464153,0.1773144,84210.0,84177.0,0.1]
[1731342464357,0.1773144,84197.0,84177.0,0.1]
[1731342464787,0.1773144,84197.0,84151.0,0.1775144]
[1731342464788,0.11994075,84196.0,84166.0,0.05949878]
[1731342465000,0.1773144,84195.0,84171.0,0.1]
[1731342465207,0.1773144,84186.0,84171.0,0.1]
[1731342465534,0.1773144,84182.0,84158.0,0.00022897]
[1731342465738,0.11994075,84181.0,84162.0,0.05979067]
[1731342465999,0.11994075,84181.0,84149.0,0.05949162]
[1731342466204,0.1773144,84195.0,84145.0,0.00022897]
[1731342466205,0.15319325,84180.0,84164.0,0.05922193]
[1731342466376,0.12693728,84179.0,84164.0,0.05922193]
[1731342466584,0.12693728,84179.0,84154.0,0.05953129]
[1731342466788,0.12693728,84179.0,84158.0,0.05935947]
[1731342467128,0.1773144,84195.0,84153.0,8e-05]
[1731342467129,0.1773144,84178.0,84171.0,0.023]
[1731342467484,0.11994075,84194.0,84173.0,0.023]
[1731342467695,0.1773144,84182.0,84173.0,0.023]
[1731342467903,0.11994075,84194.0,84173.0,0.023]
[1731342468077,0.1773144,84185.0,84173.0,0.023]
[1731342468423,0.11994075,84194.0,84173.0,0.023]
[1731342468635,0.11994075,84194.0,84173.0,0.05973108]
[1731342468847,0.1773144,84186.0,84172.0,0.023]
[1731342469028,0.11994075,84193.0,84172.0,0.023]
[1731342469233,0.11994075,84193.0,84172.0,0.05990936]
[1731342469437,0.11994075,84193.0,84173.0,0.023]
[1731342469684,0.11994075,84193.0,84172.0,0.15990936]
[1731342469685,0.11994075,84193.0,84177.0,0.023]
[1731342469894,0.11994075,84193.0,84175.0,0.08224717]
[1731342470118,0.1773144,84195.0,84176.0,0.023]
[1731342470331,0.1773144,84195.0,84177.0,0.05976]
[1731342470553,0.1773144,84195.0,84176.0,0.023]
[1731342470554,0.1773144,84195.0,84179.0,0.05911601]
[1731342470744,0.1269,84216.0,84183.0,0.05945442]
[1731342470977,0.001706,84252.0,84193.0,0.123]
[1731342470978,0.1773144,84209.0,84193.0,0.123]
[1731342471204,0.001706,84252.0,84195.0,0.005]
[1731342471205,0.0816,84249.0,84195.0,0.005]
[1731342471413,0.1773144,84208.0,84198.0,0.023]
[1731342471637,0.1773144,84208.0,84200.0,0.023]
[1731342471856,0.1773144,84208.0,84176.0,0.005]
[1731342471857,0.1773144,84208.0,84194.0,0.023]
[1731342472305,0.11994075,84207.0,84195.0,0.01489562]
[1731342472702,0.08,84217.0,84196.0,0.023]
[1731342472919,0.2243144,84228.0,84196.0,0.023]
[1731342473146,0.2243144,84228.0,84198.0,0.123]
[1731342473370,0.1773144,84228.0,84199.0,0.11994075]
[1731342473636,0.1773144,84228.0,84200.0,0.123]
[1731342473834,0.1773144,84218.0,84202.0,0.123]
[1731342474085,0.1773144,84209.0,84204.0,0.1]
[1731342474302,0.1773144,84228.0,84205.0,0.023]
[1731342474529,0.1773144,84217.0,84206.0,0.11994075]
[1731342474751,0.1773144,84242.0,84210.0,0.1773144]
[1731342474964,0.1773144,84242.0,84207.0,0.1]
[1731342474965,0.1773144,84233.0,84212.0,0.123]
[1731342475165,0.1773144,84224.0,84214.0,0.123]
[1731342475377,0.1773144,84224.0,84214.0,0.24294075]
[1731342475579,0.1773144,84224.0,84214.0,0.123]
[1731342475780,0.1773144,84233.0,84214.0,0.123]
[1731342476655,0.1773144,84233.0,84208.0,0.023]
[1731342476797,0.1773144,84233.0,84215.0,0.023]
[1731342477155,0.1773144,84233.0,84215.0,0.123]
[1731342477422,0.1773144,84229.0,84217.0,0.123]
[1731342477633,0.1773144,84242.0,84218.0,0.14294075]
[1731342477849,0.1773144,84242.0,84219.0,0.1773144]
[1731342478062,0.1773144,84242.0,84221.0,0.1]
[1731342478267,0.1773144,84242.0,84222.0,0.14294075]
[1731342478475,0.1773144,84242.0,84225.0,0.0795]
[1731342478686,0.1773144,84242.0,84227.0,0.1]
[1731342478687,0.1773144,84229.0,84227.0,0.1]
[1731342478878,0.1773144,84242.0,84228.0,0.14294075]
[1731342479085,0.1773144,84242.0,84229.0,0.1]
[1731342479264,0.1773144,84242.0,84205.0,0.1773144]
[1731342479265,0.1773144,84242.0,84206.0,0.1]
[1731342479469,0.077,84241.0,84206.0,0.1]
[1731342479643,0.077,84241.0,84205.0,0.1773144]
[1731342480032,0.077,84241.0,84206.0,0.05954665]
[1731342480238,0.077,84241.0,84207.0,0.00237489]
[1731342480462,0.1773144,84229.0,84208.0,0.11994075]
[1731342480888,0.16882422,84242.0,84215.0,0.023]
[1731342481075,0.1773144,84233.0,84217.0,0.123]
[1731342481361,0.1773144,84233.0,84207.0,0.05913611]
[1731342481362,0.1773144,84233.0,84219.0,0.073]
[1731342481512,0.001698,84229.0,84221.0,0.023]
[1731342481716,0.001698,84229.0,84219.0,0.073]
[1731342481717,0.001698,84229.0,84223.0,0.023]
[1731342481998,0.001698,84229.0,84224.0,0.023]
[1731342482985,0.001706,84252.0,84241.0,0.71236487]
[1731342483185,0.71407087,84265.0,84264.0,0.023]
[1731342483302,0.71407087,84265.0,84243.0,0.05998797]
[1731342483716,0.001706,84265.0,84243.0,0.05998797]
[1731342484155,0.001706,84265.0,84243.0,0.06498797]
[1731342484359,0.001706,84265.0,84250.0,0.005]
[1731342484575,0.001706,84265.0,84254.0,0.0761]
[1731342484782,0.71236487,84262.0,84255.0,0.11994075]
[1731342485028,0.001706,84265.0,84257.0,0.1]
[1731342485245,0.001706,84265.0,84259.0,0.123]
[1731342485415,0.001706,84265.0,84261.0,0.123]
[1731342485624,0.001706,84265.0,84263.0,0.123]
[1731342485822,0.001706,84265.0,84264.0,0.14531408]
[1731342486023,0.001706,84265.0,84264.0,0.30201319]
[1731342487249,0.71236487,84283.0,84266.0,0.023]
[1731342487460,0.71236487,84273.0,84268.0,0.123]
[1731342487706,0.71236487,84283.0,84269.0,0.11994075]
[1731342487707,0.71236487,84270.0,84269.0,0.11994075]
[1731342487935,0.000672,84313.0,84269.0,0.11994075]
[1731342487936,0.71236487,84291.0,84275.0,0.005]
[1731342488169,0.17798556,84289.0,84286.0,0.03200744]
[1731342488389,0.000672,84313.0,84287.0,0.32092631]
[1731342488784,0.17798556,84303.0,84295.0,0.023]
[1731342489030,0.17798556,84302.0,84295.0,0.023]
[1731342489431,0.17798556,84312.0,84293.0,0.023]
[1731342489647,0.000672,84313.0,84300.0,0.17798556]
[1731342489860,0.000672,84313.0,84302.0,0.17798556]
[1731342490055,0.000672,84313.0,84304.0,0.1]
[1731342490286,0.000672,84313.0,84312.0,0.023]
[1731342490497,0.000672,84313.0,84312.0,0.0123]
[1731342490925,0.000672,84337.0,84320.0,0.005]
[1731342491122,0.000672,84337.0,84320.0,0.22494075]
[1731342491335,0.17798556,84341.0,84322.0,0.005]
[1731342491544,0.17798556,84341.0,84326.0,0.11994075]
[1731342491764,0.000672,84350.0,84331.0,0.11994075]
[1731342491983,0.000672,84350.0,84334.0,0.11994075]
[1731342492165,0.17798556,84348.0,84335.0,0.1]
[1731342492387,0.000672,84350.0,84335.0,0.1]
[1731342492852,0.000672,84350.0,84341.0,0.17798556]
[1731342493080,0.0481,84383.0,84341.0,0.17798556]
[1731342493081,0.17798556,84371.0,84346.0,0.11994075]
[1731342493287,0.05500156,84380.0,84347.0,0.123]
[1731342493488,0.11994075,84379.0,84349.0,0.023]
[1731342493616,0.11994075,84379.0,84359.0,0.023]
[1731342493818,0.0481,84383.0,84359.0,0.14294075]
[1731342494356,0.0481,84383.0,84361.0,0.023]
[1731342494567,0.11994075,84380.0,84363.0,0.123]
[1731342494762,0.0481,84383.0,84363.0,0.1]
[1731342494979,0.0481,84383.0,84362.0,0.17798556]
[1731342494980,0.11994075,84380.0,84364.0,0.17798556]
[1731342495177,0.0481,84383.0,84366.0,0.023]
[1731342496257,0.0481,84383.0,84365.0,0.1]
[1731342496258,0.11994075,84380.0,84365.0,0.1]
[1731342496546,0.11994075,84380.0,84348.0,0.17798556]
[1731342496547,0.005,84377.0,84348.0,0.17798556]
[1731342496762,0.005,84377.0,84363.0,0.17798556]
[1731342496763,0.11994075,84376.0,84363.0,0.17798556]
[1731342496969,0.11994075,84376.0,84348.0,0.17798556]
[1731342497189,0.11994075,84376.0,84360.0,0.17798556]
[1731342497816,0.11994075,84376.0,84361.0,0.17798556]
[1731342498223,0.0481,84383.0,84371.0,0.17798556]
[1731342498433,0.0481,84383.0,84361.0,0.17798556]
[1731342498434,0.0481,84383.0,84362.0,0.1]
[1731342498650,0.0481,84383.0,84371.0,0.023]
[1731342498868,0.0481,84383.0,84371.0,0.123]
[1731342499098,0.0481,84383.0,84373.0,0.023]
[1731342499542,0.0481,84383.0,84374.0,0.21994075]
[1731342499772,0.000672,84387.0,84374.0,0.21994075]
[1731342499976,0.000672,84387.0,84375.0,0.05976707]
[1731342500160,0.000672,84387.0,84376.0,0.27989197]
[1731342500410,0.000672,84387.0,84376.0,0.21994075]
[1731342500792,0.000672,84387.0,84379.0,0.05922707]
[1731342501086,0.000672,84387.0,84378.0,0.1]
[1731342501300,0.000672,84387.0,84359.0,0.1]
[1731342501500,0.000672,84387.0,84376.0,0.17798556]
[1731342501610,0.000672,84387.0,84368.0,0.1]
[1731342501814,0.000672,84387.0,84367.0,0.17798556]
[1731342501815,0.000672,84387.0,84371.0,0.05917965]
[1731342502060,0.000672,84387.0,84373.0,0.05946766]
[1731342502236,0.000672,84387.0,84378.0,0.15988142]
[1731342502438,0.000672,84387.0,84380.0,0.1597436]
[1731342502715,0.000672,84387.0,84380.0,0.24294075]
[1731342503132,0.000672,84387.0,84380.0,0.38378435]
[1731342503353,0.873604,84381.0,84380.0,0.40048435]
[1731342503571,0.75514991,84381.0,84380.0,0.32868435]
[1731342503796,0.70571582,84381.0,84380.0,0.32868435]
[1731342503984,0.17865756,84416.0,84380.0,0.32868435]
[1731342503985,0.17865756,84416.0,84398.0,0.005]
[1731342504281,0.17865756,84416.0,84380.0,0.32368435]
[1731342504282,0.17865756,84416.0,84409.0,0.1]
[1731342504731,0.0789,84414.0,84409.0,0.1]
[1731342504949,0.1261,84414.0,84393.0,0.283]
[1731342505149,0.1211,84414.0,84393.0,0.283]
[1731342505668,0.1211,84414.0,84406.0,0.17798556]
[1731342505868,0.000672,84416.0,84410.0,0.123]
[1731342506071,0.000672,84416.0,84411.0,0.11994075]
[1731342506710,0.0196278,84415.0,84411.0,0.11994075]
[1731342507114,0.0196278,84415.0,84414.0,0.24794075]
[1731342507480,0.0196278,84415.0,84414.0,1.83809453]
[1731342507685,0.0196278,84415.0,84414.0,1.83572595]
[1731342507919,0.0196278,84415.0,84414.0,2.19111595]
[1731342508154,0.0196278,84415.0,84414.0,2.19611595]
[1731342508511,0.0196278,84415.0,84414.0,2.15961595]
[1731342508887,0.1438278,84415.0,84414.0,0.35539]
[1731342509321,0.1438278,84415.0,84414.0,0.47533075]
[1731342509503,0.0196278,84415.0,84414.0,0.53490379]
[1731342510163,0.1232,84431.0,84414.0,0.53490379]
[1731342510164,0.0634998,84431.0,84414.0,0.53490379]
[1731342510302,0.17798556,84429.0,84416.0,0.05964497]
[1731342510505,0.0634998,84431.0,84418.0,0.1]
[1731342510730,0.000672,84434.0,84405.0,0.17798556]
[1731342510731,0.000672,84434.0,84431.0,0.15968716]
[1731342510928,0.000672,84434.0,84433.0,0.15931267]
[1731342511182,0.000672,84434.0,84433.0,0.63456342]
[1731342511927,0.000672,84434.0,84433.0,0.35531]
[1731342513167,0.24431275,84434.0,84433.0,0.35531]
[1731342513364,0.24431275,84434.0,84433.0,0.27721]
[1731342513963,0.10412824,84434.0,84433.0,0.27721]
[1731342514149,0.07312663,84434.0,84433.0,0.27721]
[1731342514341,0.19306738,84434.0,84433.0,0.27721]
[1731342515396,0.19306738,84434.0,84433.0,0.22721]
[1731342515844,0.07312663,84434.0,84433.0,0.22721]
[1731342516261,0.18894546,84434.0,84433.0,0.22721]
[1731342516675,0.18894546,84434.0,84433.0,0.09911]
[1731342516900,0.19394546,84434.0,84433.0,0.09911]
[1731342517113,0.22194546,84434.0,84433.0,0.02101]
[1731342517316,0.005,84445.0,84433.0,0.02101]
[1731342517519,0.10675113,84434.0,84433.0,0.02101]
[1731342517979,0.10675113,84434.0,84414.0,0.17798556]
[1731342517980,0.10087766,84434.0,84414.0,0.17798556]
[1731342518214,0.10087766,84434.0,84426.0,0.17798556]
[1731342518438,0.0468,84424.0,84415.0,0.17798556]
[1731342518673,0.11994075,84423.0,84415.0,0.17798556]
[1731342519150,0.001694,84434.0,84415.0,0.17798556]
[1731342519387,0.0468,84439.0,84415.0,0.17798556]
[1731342519612,0.11994075,84433.0,84405.0,0.15986389]
[1731342519825,0.11994075,84433.0,84415.0,0.17798556]
[1731342520042,0.12494075,84433.0,84405.0,0.1]
[1731342520247,0.005,84432.0,84414.0,0.17798556]
[1731342520478,0.005,84450.0,84431.0,0.17798556]
[1731342520676,0.0769,84446.0,84416.0,0.05964497]
[1731342520885,0.00400123,84442.0,84422.0,0.17798556]
[1731342521059,0.00400123,84439.0,84426.0,0.005]
[1731342521321,0.00400123,84436.0,84422.0,0.17798556]
[1731342521728,0.11511854,84433.0,84413.0,0.17798556]
[1731342521971,0.023,84432.0,84423.0,0.17798556]
[1731342522206,0.11994075,84424.0,84404.0,0.17798556]
[1731342522412,0.11994075,84424.0,84394.0,0.05905971]
[1731342522413,0.023,84414.0,84406.0,0.17798556]
[1731342522604,0.02700123,84412.0,84411.0,0.17798556]
[1731342522729,0.023,84411.0,84379.0,0.05922707]
[1731342522926,0.00400123,84410.0,84396.0,0.17798556]
[1731342523154,0.023,84406.0,84396.0,0.17798556]
[1731342523361,0.023,84396.0,84365.0,0.000847]
[1731342523562,0.023,84392.0,84387.0,0.17798556]
[1731342523762,0.023,84392.0,84366.0,0.06496589]
[1731342524055,0.023,84390.0,84382.0,0.17798556]
[1731342524443,0.023,84390.0,84366.0,0.005]
[1731342524444,0.023,84388.0,84367.0,0.05983074]
[1731342524646,0.023,84386.0,84373.0,0.17798556]
[1731342524775,0.023,84384.0,84373.0,0.17798556]
[1731342524977,0.17798556,84381.0,84366.0,0.06496589]
[1731342525179,0.11994075,84380.0,84367.0,0.17798556]
[1731342525485,0.023,84379.0,84368.0,0.17798556]
[1731342525799,0.023,84377.0,84369.0,0.05989935]
[1731342526004,0.11994075,84376.0,84369.0,0.05989935]
[1731342526205,0.023,84375.0,84369.0,0.05989935]
[1731342526361,0.023,84390.0,84369.0,0.15989935]
[1731342526571,0.17798556,84382.0,84369.0,0.15989935]
[1731342526836,0.10990353,84381.0,84371.0,0.1]
[1731342527026,0.17798556,84380.0,84371.0,0.1]
[1731342527232,0.0483,84393.0,84371.0,0.1]
[1731342527233,0.00400123,84406.0,84372.0,0.17798556]
[1731342527433,0.00400123,84406.0,84370.0,0.06035501]
[1731342527434,0.17798556,84382.0,84373.0,0.1]
[1731342527634,0.11994075,84381.0,84373.0,0.1]
[1731342528254,0.11994075,84381.0,84366.0,0.005]
[1731342528460,0.16964075,84380.0,84346.0,0.00099877]
[1731342528629,0.16964075,84380.0,84324.0,0.0468]
[1731342528630,0.17798556,84368.0,84326.0,0.005]
[1731342528852,0.17798556,84368.0,84325.0,0.082]
[1731342528853,0.0754,84367.0,84329.0,0.05935329]
[1731342529059,0.0754,84367.0,84326.0,0.05930646]
[1731342529272,0.11994075,84348.0,84315.0,0.00099877]
[1731342529648,0.0497,84360.0,84312.0,0.05900354]
[1731342529649,0.023,84335.0,84312.0,0.05900354]
[1731342529846,0.023,84333.0,84312.0,0.05900354]
[1731342530003,0.023,84331.0,84312.0,0.05900354]
[1731342530163,0.023,84329.0,84312.0,0.05900354]
[1731342530380,0.023,84329.0,84308.0,0.005]
[1731342530381,0.023,84329.0,84316.0,0.05979696]
[1731342530592,0.023,84327.0,84316.0,0.05979696]
[1731342530798,0.01781212,84327.0,84315.0,0.00099877]
[1731342531004,0.023,84329.0,84324.0,0.00099877]
[1731342531226,0.17798556,84342.0,84325.0,0.05920247]
[1731342531430,0.17798556,84333.0,84328.0,0.00099877]